bitfinex-derivatives/quotes_SOLF0:USTF0_20260204
["timestamp","ask_amount","ask_price","bid_price","bid_amount"]
[1770237023964,9.51883475,93.349,93.235,13.34671561]
[1770237023965,9.51883475,93.349,93.29,8.07365061]
[1770237024568,19.3105,93.392,93.291,9.6655]
[1770237024569,9.51859955,93.347,93.291,9.6655]
[1770237025464,9.51859955,93.347,93.29,8.07365061]
[1770237026471,9.51859955,93.347,93.308,9.6638]
[1770237026670,9.51859955,93.347,93.27,8.07365061]
[1770237027371,9.53841771,93.362,93.27,8.07365061]
[1770237028172,9.53841771,93.352,93.27,8.07365061]
[1770237028672,9.53841771,93.352,93.309,9.6637]
[1770237029072,9.53779416,93.426,93.31,8.07365061]
[1770237029263,9.53779416,93.426,93.292,9.96549092]
[1770237029466,9.53779416,93.424,93.292,9.96549092]
[1770237029668,9.53779416,93.424,93.29,8.07365061]
[1770237029972,9.53779416,93.364,93.29,8.07365061]
[1770237030375,9.53779416,93.409,93.29,8.07365061]
[1770237030575,9.53779416,93.409,93.329,9.6616]
[1770237031178,9.55457717,93.373,93.306,9.664]
[1770237032875,9.55457717,93.365,93.306,9.664]
[1770237033976,9.56288509,93.361,93.297,9.6649]
[1770237034378,9.56288509,93.361,93.27,8.07365061]
[1770237034768,9.6598,93.348,93.296,9.665]
[1770237034973,9.56568954,93.347,93.27,8.07365061]
[1770237035776,9.56568954,93.345,93.295,9.6651]
[1770237035978,9.56568954,93.345,93.27,8.07365061]
[1770237036378,9.56568954,93.344,93.287,9.666]
[1770237036778,9.56568954,93.344,93.252,9.96549092]
[1770237036974,9.56568954,93.344,93.25,40.25365061]
[1770237037175,9.55774916,93.309,93.23,40.25365061]
[1770237037576,9.55774916,93.309,93.254,9.6694]
[1770237037880,9.55774916,93.309,93.231,9.96549092]
[1770237038076,9.55774916,93.309,93.23,8.07365061]
[1770237038077,9.55774916,93.309,93.236,9.96549092]
[1770237038274,9.55774916,93.309,93.237,9.96549092]
[1770237038476,9.55774916,93.309,93.263,9.6685]
[1770237039679,9.55774916,93.309,93.218,13.34671561]
[1770237039680,9.58955547,93.325,93.274,9.6674]
[1770237040379,9.58955547,93.325,93.265,9.6683]
[1770237041185,9.58174302,93.321,93.256,9.6692]
[1770237041788,9.58174302,93.31,93.246,9.6703]
[1770237041988,9.58174302,93.31,93.23,8.07365061]
[1770237043192,9.6648,93.299,93.243,9.6705]
[1770237043392,19.23186565,93.299,93.243,9.6705]
[1770237043688,9.56706565,93.298,93.243,9.6705]
[1770237045192,9.57182808,93.297,93.19,8.07365061]
[1770237045388,9.57182808,93.297,93.194,9.97748571]
[1770237045696,9.57182808,93.267,93.205,9.6745]
[1770237045893,9.57182808,93.267,93.19,8.07365061]
[1770237046190,9.57182808,93.265,93.203,9.6747]
[1770237047481,9.59579553,93.262,93.194,9.6756]
[1770237048893,9.59579553,93.257,93.194,9.6756]
[1770237049790,9.59500884,93.253,93.194,9.6756]
[1770237050890,9.59500884,93.309,93.185,1.86636204]
[1770237051296,9.59500884,93.309,93.2,8.07954747]
[1770237051597,9.6139548,93.272,93.218,9.6731]
[1770237052291,9.6139548,93.272,93.229,9.672]
[1770237052496,9.6139548,93.292,93.229,9.672]
[1770237052994,9.63272451,93.283,93.229,9.672]
[1770237054188,9.63272451,93.283,93.236,9.6712]
[1770237054387,9.63281708,93.341,93.24,8.07954747]
[1770237055195,9.64685242,93.308,93.245,9.6703]
[1770237055593,9.64685242,93.308,93.22,8.07954747]
[1770237056295,9.6655,93.292,93.235,9.6714]
[1770237056495,9.64685242,93.292,93.22,8.07954747]
[1770237056687,19.3209,93.342,93.237,9.6712]
[1770237056688,19.31275242,93.289,93.237,9.6712]
[1770237056890,9.64685242,93.289,93.237,9.6712]
[1770237057399,9.64723955,93.304,93.24,8.07954747]
[1770237058096,9.64723955,93.304,93.259,9.6689]
[1770237058402,9.64723955,93.304,93.24,8.07954747]
[1770237058604,9.64723955,93.304,93.21,8.07954747]
[1770237058798,9.63992837,93.293,93.193,19.3516]
[1770237059603,9.63992837,93.272,93.221,9.6729]
[1770237059897,9.63992837,93.272,93.19,8.07954747]
[1770237060200,9.63992837,93.261,93.17,8.07954747]
[1770237060503,9.63992837,93.229,93.12,9.97748571]
[1770237060698,150.4234,93.249,93.09,8.07954747]
[1770237060699,9.63992837,93.155,93.09,8.07954747]
[1770237060901,9.63992837,93.155,93.095,1.86785966]
[1770237061103,9.63992837,93.155,93.051,9.97748571]
[1770237061297,9.61279765,93.125,93.03,8.07954747]
[1770237061498,9.765e-05,93.106,93.0,9.94592985]
[1770237061699,9.6794,93.158,93.08,9.6875]
[1770237062204,9.6805,93.148,93.072,9.6883]
[1770237062797,8.07954747,93.15,93.03,8.07954747]
[1770237063103,8.07954747,93.15,93.01,8.07954747]
[1770237063398,9.6827,93.126,93.045,9.6911]
[1770237063598,4.77220726,93.125,93.045,9.6911]
[1770237063793,4.77220726,93.125,93.01,8.07954747]
[1770237063992,4.77220726,93.125,93.03,8.07954747]
[1770237064195,4.77220726,93.125,92.985,585.11041117]
[1770237064196,4.77220726,93.125,92.985,424.31538132]
[1770237064392,4.77220726,93.125,93.0,8.07954747]
[1770237064594,4.77220726,93.099,93.017,9.694]
[1770237064802,4.77220726,93.099,93.0,8.07954747]
[1770237065104,4.77220726,93.099,93.031,9.6925]
[1770237065901,4.77220726,93.099,93.049,9.6907]
[1770237066997,4.77220726,93.099,93.0,8.07954747]
[1770237068110,4.77220726,93.099,93.043,9.6913]
[1770237068302,4.77220726,93.099,93.0,8.07954747]
[1770237068504,4.77220726,93.099,92.985,424.31538132]
[1770237068806,4.77220726,93.099,93.029,9.6928]
[1770237069003,4.77220726,93.099,93.0,8.07954747]
[1770237069311,4.77220726,93.099,93.045,1.86947016]
[1770237069704,7.26e-06,93.099,93.062,9.6894]
[1770237070302,7.26e-06,93.099,93.049,9.6907]
[1770237070503,7.26e-06,93.099,93.031,3.37940269]
[1770237070806,7.26e-06,93.099,93.025,1.86949024]
[1770237071105,7.26e-06,93.099,93.015,3.30472714]
[1770237071699,7.26e-06,93.099,93.028,9.6929]
[1770237072510,7.26e-06,93.099,93.039,9.6917]
[1770237072913,7.26e-06,93.099,93.027,9.693]
[1770237073114,7.26e-06,93.099,93.016,3.30472714]
[1770237073708,3.59779234,93.089,92.998,3.34383577]
[1770237074302,3.59779234,93.089,93.016,9.6941]
[1770237074509,3.59779234,93.089,92.995,1.86999253]
[1770237074706,3.59779234,93.058,92.977,9.6982]
[1770237075009,3.59779234,93.058,92.978,3.73986613]
[1770237075606,3.59779234,93.076,92.981,3.73986613]
[1770237076108,3.59779234,93.076,93.003,3.73986613]
[1770237077409,3.59779234,93.076,93.016,9.6942]
[1770237077610,3.59779234,93.129,93.017,3.73986613]
[1770237077805,3.59779234,93.129,93.021,3.73986613]
[1770237078002,3.59779234,93.123,93.045,3.73986613]
[1770237078412,3.59779234,93.123,93.021,32.18]
[1770237078413,3.59779234,93.123,93.061,3.73986613]
[1770237079312,3.59779234,93.12,93.061,3.73986613]
[1770237079511,3.59779234,93.12,93.04,3.73986613]
[1770237079709,150.5394,93.177,93.04,3.73986613]
[1770237079710,8.07954747,93.18,93.041,3.73986613]
[1770237079904,3.59779234,93.143,93.067,3.73986613]
[1770237080612,3.59779234,93.143,93.083,9.6872]
[1770237080809,3.59779234,93.143,93.084,3.73986613]
[1770237081202,3.59779234,93.163,93.091,3.73986613]
[1770237081407,3.59779234,93.182,93.091,3.73986613]
[1770237082010,3.59779234,93.182,93.111,3.73986613]
[1770237082308,3.59779234,93.182,93.09,3.73986613]
[1770237083112,3.59779234,93.157,93.09,3.73986613]
[1770237083311,3.59779234,93.157,93.071,3.73986613]
[1770237083816,3.59779234,93.148,93.071,3.73986613]
[1770237084513,3.78868205,93.167,93.071,3.73986613]
[1770237085321,3.78868205,93.154,93.051,3.73043093]
[1770237086017,3.78868205,93.134,93.058,3.73043093]
[1770237086216,3.78868205,93.134,93.06,3.73043093]
[1770237086909,3.78868205,93.134,93.07,8.07954747]
[1770237087110,3.78868205,93.134,93.072,3.73043093]
[1770237087316,8.07954747,93.2,93.072,3.73043093]
[1770237087317,3.78868205,93.199,93.072,3.73043093]
[1770237087614,3.78868205,93.178,93.086,3.73043093]
[1770237088112,3.78868205,93.169,93.09,3.73043093]
[1770237088305,3.78868205,93.169,93.091,3.73043093]
[1770237088508,3.78868205,93.169,93.093,3.73043093]
[1770237088918,150.3992,93.264,93.052,32.18]
[1770237088919,3.78868205,93.193,93.117,3.73043093]
[1770237089118,3.78868205,93.193,93.11,8.07954747]
[1770237089119,3.78868205,93.193,93.119,3.73043093]
[1770237090515,3.78868205,93.193,93.129,9.6824]
[1770237091713,3.78868205,93.233,93.139,3.73043093]
[1770237091913,3.78868205,93.233,93.15,8.07954747]
[1770237093117,3.78868205,93.233,93.151,87.64]
[1770237093317,3.78868205,93.233,93.152,3.73043093]
[1770237093715,3.78868205,93.231,93.163,9.6788]
[1770237094013,3.78868205,93.231,93.164,87.66]
[1770237094316,3.78868205,93.256,93.19,8.07954747]
[1770237094516,3.78868205,93.256,93.203,9.6746]
[1770237095016,3.78868205,93.306,93.21,8.07954747]
[1770237095224,3.78868205,93.285,93.213,9.6737]
[1770237095513,3.78868205,93.285,93.213,85.76]
[1770237095712,3.78868205,93.285,93.215,3.73043093]
[1770237096217,3.78868205,93.304,93.235,9.6713]
[1770237096417,3.78868205,93.304,93.231,3.73043093]
[1770237096822,3.78868205,93.33,93.255,3.73043093]
[1770237097718,3.78868205,93.33,93.27,9.6677]
[1770237097916,3.78868205,93.33,93.271,85.74]
[1770237098116,3.78868205,93.33,93.266,91.43043093]
[1770237098421,3.78868205,93.33,93.272,9.6675]
[1770237098621,3.78868205,93.349,93.273,3.73043093]
[1770237098812,3.78868205,93.349,93.282,9.6665]
[1770237099018,3.78868205,93.349,93.273,3.73043093]
[1770237099413,3.78868205,93.349,93.274,85.72]
[1770237100423,3.78868205,93.349,93.275,87.78]
[1770237100721,3.78868205,93.349,93.275,97.4472]
[1770237101214,3.78868205,93.349,93.286,9.6661]
[1770237102311,3.78868205,93.349,93.281,87.86]
[1770237102714,3.78868205,93.349,93.274,9.6673]
[1770237103314,3.78868205,93.346,93.274,9.6673]
[1770237103821,3.78868205,93.346,93.234,3.73043093]
[1770237104725,3.78868205,93.314,93.234,3.73043093]
[1770237105628,3.78868205,93.312,93.236,3.73043093]
[1770237106015,150.2139,93.379,93.236,3.73043093]
[1770237106016,3.78868205,93.311,93.236,3.73043093]
[1770237106226,3.78868205,93.309,93.236,3.73043093]
[1770237106622,3.78868205,93.275,93.236,3.73043093]
[1770237107117,3.78868205,93.275,93.236,3.093e-05]
[1770237107318,3.78868205,93.275,93.18,8.07954747]
[1770237107520,3.78868205,93.262,93.16,8.07954747]
[1770237108023,3.78868205,93.245,93.171,9.6781]
[1770237108322,3.78868205,93.245,93.14,8.07954747]
[1770237108528,150.3486,93.295,93.148,9.6814]
[1770237108529,3.78868205,93.218,93.148,9.6814]
[1770237108825,3.78868205,93.218,93.12,8.07954747]
[1770237108826,3.78868205,93.218,93.1,8.07954747]
[1770237109020,3.78868205,93.218,93.101,2.02027241]
[1770237109224,3.78868205,93.214,93.148,9.6814]
[1770237110518,3.78868205,93.211,93.136,9.6826]
[1770237110720,3.78868205,93.211,93.091,2.02027241]
[1770237111121,3.78868205,93.2,93.111,2.04723534]
[1770237111721,3.78868205,93.198,93.111,2.04723534]
[1770237112528,3.78868205,93.196,93.111,2.04723534]
[1770237113131,9.6777,93.184,93.111,2.04723534]
[1770237113433,3.78868205,93.196,93.111,2.04723534]
[1770237113630,3.78868205,93.196,93.119,9.6844]
[1770237113932,3.8904345,93.184,93.111,2.04723534]
[1770237114427,3.8904345,93.178,93.091,2.04561813]
[1770237114832,3.8904345,93.167,93.102,9.6862]
[1770237115133,3.8904345,93.167,93.072,2.04441699]
[1770237115535,9.6808,93.155,93.078,9.6886]
[1770237115734,3.8904345,93.154,93.072,2.04441699]
[1770237116131,3.8904345,93.154,93.098,9.6866]
[1770237116330,3.8904345,93.154,93.092,2.04441699]
[1770237116740,3.8904345,93.154,93.092,11.73161699]
[1770237117439,3.8904345,93.154,93.103,9.6861]
[1770237118140,3.8904345,93.154,93.092,2.04441699]
[1770237118141,3.8904345,93.19,93.114,9.6849]
[1770237118334,3.8904345,93.19,93.092,2.04441699]
[1770237118840,3.8904345,93.19,93.124,9.6839]
[1770237119836,3.8904345,93.19,93.135,9.6828]
[1770237121041,3.61978471,93.269,93.151,2.02862954]
[1770237121438,8.09119639,93.27,93.151,2.02862954]
[1770237121439,3.61978471,93.239,93.168,9.6793]
[1770237122446,3.61978471,93.239,93.179,9.6781]
[1770237122642,3.61978471,93.239,93.171,2.02862954]
[1770237123340,3.61978471,93.239,93.179,9.6781]
[1770237123834,3.61978471,93.239,93.171,2.02862954]
[1770237123835,3.61978471,93.239,93.188,9.6772]
[1770237124648,3.61978471,93.238,93.176,9.6785]
[1770237124836,3.61978471,93.238,93.171,2.02862954]
[1770237125034,3.61978471,93.238,93.141,2.15676678]
[1770237125234,3.61978471,93.222,93.161,9.68]
[1770237125934,3.61978471,93.219,93.161,9.68]
[1770237126136,3.61978471,93.219,93.146,2.15676678]
[1770237126336,3.61978471,93.219,93.127,2.15676678]
[1770237126544,3.61978471,93.202,93.127,2.15676678]
[1770237127142,169.7507,93.265,93.108,2.1599842]
[1770237127143,3.61978471,93.209,93.108,2.1599842]
[1770237127446,3.61978471,93.209,93.124,9.6838]
[1770237128540,3.61978471,93.185,93.124,9.6838]
[1770237128742,3.61978471,93.185,93.108,2.1599842]
[1770237129542,3.61978471,93.172,93.113,9.685]
[1770237130341,3.61978471,93.172,93.108,2.1599842]
[1770237130547,3.61978471,93.219,93.108,2.1599842]
[1770237130842,3.61978471,93.219,93.073,19.3783]
[1770237130843,3.61978471,93.201,93.14,9.6822]
[1770237131546,3.61978471,93.198,93.14,9.6822]
[1770237132146,8.09119639,93.22,93.111,2.15711716]
[1770237132147,3.61978471,93.195,93.111,2.15711716]
[1770237132542,3.61978471,93.192,93.13,9.6833]
[1770237133449,3.61978471,93.192,93.101,2.07661522]
[1770237133754,3.61978471,93.192,93.144,9.6818]
[1770237134748,3.61978471,93.192,93.154,9.6808]
[1770237135144,3.61978471,93.192,93.122,2.07661522]
[1770237135548,3.61978471,93.249,93.122,2.07661522]
[1770237135954,3.61978471,93.21,93.144,9.6818]
[1770237136252,3.61978471,93.21,93.122,2.07661522]
[1770237136457,3.61978471,93.176,93.091,2.08327285]
[1770237137048,3.61978471,93.173,93.091,2.08327285]
[1770237138357,3.61978471,93.171,93.114,9.6849]
[1770237138756,3.61978471,93.168,93.091,2.08327285]
[1770237139445,3.61978471,93.153,93.091,2.08327285]
[1770237140252,3.61978471,93.153,93.092,9.6872]
[1770237140454,3.61978471,93.153,93.061,2.00764965]
[1770237140757,3.61978471,93.135,93.061,2.00764965]
[1770237142561,3.61978471,93.121,93.061,2.00764965]
[1770237143757,3.61978471,93.121,93.072,9.6893]
[1770237143962,3.61978471,93.121,93.061,2.00764965]
[1770237144466,3.61978471,93.121,93.034,1.98040632]
[1770237145059,3.71784774,93.104,93.034,1.98040632]
[1770237145965,3.71784774,93.125,93.054,1.96022846]
[1770237146663,8.09119639,93.16,93.054,1.96022846]
[1770237146664,3.71784774,93.123,93.063,9.6902]
[1770237146855,3.71784774,93.123,93.054,1.96022846]
[1770237147362,9.56949891,93.224,93.005,150.831]
[1770237147363,3.71784774,93.142,93.071,1.89837413]
[1770237148260,3.71784774,93.219,93.081,1.89837413]
[1770237148764,3.71784774,93.174,93.116,9.6847]
[1770237149161,3.71784774,93.174,93.125,9.6837]
[1770237149557,3.71784774,93.174,93.081,1.88225029]
[1770237149757,3.71784774,93.166,93.109,9.6855]
[1770237149961,3.71784774,93.166,93.081,1.88225029]
[1770237150362,9.6797,93.165,93.1,9.6864]
[1770237150565,3.71784774,93.164,93.1,9.6864]
[1770237151066,13.39814774,93.159,93.1,9.6864]
[1770237151256,3.71784774,93.158,93.091,9.6873]
[1770237151766,3.71784774,93.158,93.081,1.88225029]
[1770237152164,3.71784774,93.155,93.091,9.6873]
[1770237152364,3.71784774,93.155,93.081,1.88225029]
[1770237152960,9.681,93.153,93.091,9.6873]
[1770237153164,3.71784774,93.152,93.062,1.68573112]
[1770237153560,3.71784774,93.148,93.062,1.68573112]
[1770237154055,3.71784774,93.148,93.099,9.6865]
[1770237154261,3.71784774,93.148,93.08,1.68573112]
[1770237154766,3.71784774,93.148,93.06,1.68573112]
[1770237155165,3.71784774,93.147,93.06,1.68573112]
[1770237156469,3.71784774,93.126,93.069,9.6896]
[1770237156868,3.71784774,93.126,93.039,1.67127405]
[1770237157760,8.09119639,93.16,93.059,9.6906]
[1770237157761,3.71784774,93.123,93.059,9.6906]
[1770237158762,3.71784774,93.115,93.059,9.6906]
[1770237158963,3.71784774,93.115,93.039,1.67127405]
[1770237159167,3.71784774,93.115,93.041,1.67934468]
[1770237159470,3.71784774,93.157,93.081,1.67934468]
[1770237160070,3.71784774,93.155,93.081,1.67934468]
[1770237160461,19.3555,93.184,93.081,1.67934468]
[1770237160462,3.71784774,93.139,93.082,9.6882]
[1770237161460,3.71784774,93.139,93.091,9.6873]
[1770237161665,3.71784774,93.139,93.063,1.67934468]
[1770237162860,3.71784774,93.139,93.09,9.6874]
[1770237164677,3.71784774,93.189,93.081,1.75910392]
[1770237164866,3.71784774,93.18,93.081,1.75910392]
[1770237165472,3.71784774,93.18,93.111,1.75682835]
[1770237166574,9.6761,93.199,93.142,9.682]
[1770237166773,3.71784774,93.198,93.128,1.75682835]
[1770237166972,9.6764,93.197,93.139,9.6823]
[1770237167173,3.71784774,93.196,93.139,9.6823]
[1770237167772,3.71784774,93.193,93.13,9.6833]
[1770237168371,3.71784774,93.193,93.128,1.75682835]
[1770237169071,3.71784774,93.189,93.137,9.6825]
[1770237169875,3.71784774,93.189,93.128,11.44022835]
[1770237170075,3.71784774,93.189,93.11,8.09119639]
[1770237170076,3.71784774,93.189,93.109,1.80498977]
[1770237170267,3.71784774,93.177,93.109,1.80498977]
[1770237170865,8.09657306,93.21,93.09,1.80498977]
[1770237170866,3.71784774,93.175,93.09,1.80498977]
[1770237171478,3.71784774,93.159,93.097,9.6867]
[1770237171966,3.71784774,93.159,93.09,1.80498977]
[1770237172276,3.71784774,93.158,93.09,1.80498977]
[1770237172774,3.71784774,93.158,93.104,9.686]
[1770237173370,3.71784774,93.157,93.095,9.6868]
[1770237173675,3.71784774,93.157,93.09,1.80498977]
[1770237174367,3.71784774,93.157,93.113,9.685]
[1770237176971,3.55485473,93.174,93.123,9.6839]
[1770237177774,3.55485473,93.174,93.131,9.6832]
[1770237177976,3.55485473,93.174,93.106,1.83180447]
[1770237177977,3.55485473,93.192,93.124,1.83180447]
[1770237179883,3.55485473,93.192,93.106,1.80428554]
[1770237180382,3.6057427,93.22,93.121,1.80428554]
[1770237180581,3.6057427,93.22,93.141,1.80428554]
[1770237180983,3.6057427,93.216,93.159,9.6802]
[1770237181183,3.6057427,93.216,93.121,2.02492486]
[1770237182483,3.6057427,93.209,93.152,9.681]
[1770237183577,3.6057427,93.209,93.138,2.02492486]
[1770237183777,3.6057427,93.209,93.101,13.07014764]
[1770237183778,3.6057427,93.227,93.141,2.23144333]
[1770237184574,3.6057427,93.224,93.174,9.6787]
[1770237184780,3.6057427,93.224,93.158,2.23144333]
[1770237185784,3.6057427,93.224,93.174,9.6787]
[1770237186291,8.09657306,93.27,93.13,19.3666]
[1770237186292,3.6057427,93.242,93.191,9.6769]
[1770237186691,3.6057427,93.242,93.183,2.27845221]
[1770237186882,3.6057427,93.239,93.173,9.6787]
[1770237187190,3.6057427,93.239,93.165,2.27845221]
[1770237187789,3.6057427,93.229,93.17,9.6791]
[1770237188394,3.6057427,93.229,93.182,9.6779]
[1770237188590,3.6057427,93.229,93.165,2.27845221]
[1770237188787,3.6057427,93.229,93.18,9.678]
[1770237188988,3.6057427,93.229,93.165,2.27845221]
[1770237189289,3.6057427,93.246,93.165,2.27845221]
[1770237189982,3.6057427,93.244,93.165,2.27845221]
[1770237191488,3.6057427,93.243,93.186,12.04864391]
[1770237191989,3.6057427,93.243,93.186,2.37124391]
[1770237192189,9.6718,93.241,93.186,2.37124391]
[1770237192793,3.6057427,93.243,93.187,9.6773]
[1770237193390,3.6057427,93.241,93.177,9.6784]
[1770237193596,3.6057427,93.241,93.177,2.31936745]
[1770237194196,19.3345,93.285,93.177,2.31936745]
[1770237194197,13.2776427,93.24,93.184,9.6777]
[1770237194395,3.6057427,93.239,93.184,9.6777]
[1770237194997,3.6057427,93.237,93.154,2.32163247]
[1770237196597,3.6057427,93.237,93.183,9.6778]
[1770237197598,3.6057427,93.235,93.183,9.6778]
[1770237198097,3.6057427,93.235,93.154,2.32163247]
[1770237198499,3.6057427,93.229,93.154,2.32163247]
[1770237198698,3.6057427,93.229,93.136,2.53130128]
[1770237199198,3.6057427,93.211,93.136,2.53130128]
[1770237199496,3.6057427,93.211,93.163,9.6799]
[1770237201798,3.6057427,93.211,93.17,9.6791]
[1770237201999,3.6057427,93.269,93.154,2.55406344]
[1770237202205,3.6057427,93.269,93.161,2.5259471]
[1770237203809,3.9330028,93.249,93.194,9.6766]
[1770237204400,3.9330028,93.247,93.184,9.6776]
[1770237204598,3.9330028,93.247,93.179,2.52130201]
[1770237205106,3.9330028,93.247,93.202,9.6757]
[1770237206105,3.9330028,93.247,93.211,9.6748]
[1770237207508,13.6019028,93.269,93.219,9.674]
[1770237207811,3.9330028,93.268,93.219,9.674]
[1770237208409,19.3301,93.306,93.211,2.52435725]
[1770237208410,3.9330028,93.267,93.211,12.19915725]
[1770237208613,3.9330028,93.267,93.211,2.52435725]
[1770237210117,3.9330028,93.284,93.237,9.6721]
[1770237210615,3.9330028,93.282,93.229,9.6729]
[1770237210810,3.9330028,93.282,93.208,2.61824074]
[1770237211812,3.9330028,93.265,93.212,9.6748]
[1770237212413,3.9330028,93.265,93.219,9.674]
[1770237213517,3.9330028,93.281,93.226,9.6732]
[1770237213914,3.9330028,93.339,93.251,9.6707]
[1770237214110,3.9330028,93.339,93.243,2.67442189]
[1770237214307,3.9330028,93.3,93.22,8.09657306]
[1770237214507,3.9330028,93.3,93.221,2.67442189]
[1770237215116,3.9330028,93.287,93.221,2.67442189]
[1770237215315,3.9330028,93.339,93.221,2.67442189]
[1770237216017,3.9330028,93.296,93.24,9.6718]
[1770237216409,9.6673,93.285,93.23,9.6729]
[1770237216611,3.9330028,93.284,93.221,2.67442189]
[1770237217121,3.9330028,93.283,93.221,2.67442189]
[1770237217619,3.9330028,93.282,93.223,9.6736]
[1770237218123,3.9330028,93.281,93.223,9.6736]
[1770237220618,3.9330028,93.279,93.223,9.6736]
[1770237220819,3.9330028,93.279,93.208,9.6751]
[1770237221524,3.9330028,93.269,93.216,9.6743]
[1770237221720,3.9330028,93.269,93.167,3.34232368]
[1770237221921,9.6698,93.261,93.167,3.34232368]
[1770237222222,8.09657306,93.28,93.153,9.99650657]
[1770237222223,3.9330028,93.26,93.19,3.34232368]
[1770237223117,3.9330028,93.258,93.191,9.6769]
[1770237223515,3.9330028,93.258,93.192,3.210148]
[1770237223718,8.09657306,93.3,93.192,3.210148]
[1770237223719,3.9330028,93.276,93.218,9.6741]
[1770237225820,3.9330028,93.275,93.207,3.20349475]
[1770237226429,3.9330028,93.275,93.221,9.6738]
[1770237226627,3.9330028,93.275,93.222,3.20349475]
[1770237227829,3.9330028,93.275,93.227,9.6732]
[1770237228431,3.9330028,93.275,93.222,3.20349475]
[1770237228730,3.9330028,93.275,93.223,9.6736]
[1770237229026,3.9330028,93.273,93.206,3.24735527]
[1770237229233,3.9330028,93.273,93.207,9.6752]
[1770237230127,3.9330028,93.267,93.207,9.6752]
[1770237230327,3.9330028,93.267,93.215,3.24735527]
[1770237231520,9.6675,93.282,93.226,9.6732]
[1770237231719,9.6675,93.282,93.226,3.19728392]
[1770237232026,19.3236,93.338,93.246,9.6712]
[1770237232027,3.9330028,93.302,93.246,9.6712]
[1770237233726,3.9330028,93.3,93.226,3.19728392]
[1770237234536,3.67269235,93.277,93.219,9.674]
[1770237234835,3.67269235,93.277,93.211,3.21660283]
[1770237235436,3.67269235,93.277,93.235,9.6724]
[1770237235736,3.67269235,93.277,93.232,3.21120723]
[1770237236435,3.67269235,93.293,93.243,9.6715]
[1770237237532,3.67269235,93.291,93.243,9.6715]
[1770237237836,3.67269235,93.291,93.233,9.6726]
[1770237238736,3.67269235,93.287,93.233,9.6726]
[1770237238935,3.67269235,93.287,93.225,9.6734]
[1770237239140,3.67269235,93.287,93.213,3.21639642]
[1770237240442,3.66162647,93.277,93.213,3.21639642]
[1770237240639,3.66162647,93.294,93.213,3.21639642]
[1770237240832,3.66162647,93.317,93.213,3.21639642]
[1770237241032,9.76397361,93.365,93.251,3.21602666]
[1770237241239,3.66162647,93.364,93.251,3.21602666]
[1770237241537,3.66162647,93.326,93.236,3.21602666]
[1770237241936,3.66162647,93.298,93.236,3.21602666]
[1770237244037,3.66162647,93.339,93.24,8.0751591]
[1770237244235,3.66162647,93.339,93.241,3.43527859]
[1770237245235,3.66162647,93.339,93.27,3.41610034]
[1770237246648,3.66162647,93.331,93.241,3.41610034]
[1770237247041,3.66162647,93.331,93.276,9.6681]
[1770237247250,3.66162647,93.331,93.276,13.08625686]
[1770237248242,3.66162647,93.33,93.254,3.41815686]
[1770237248948,3.66162647,93.33,93.263,9.6695]
[1770237249147,3.66162647,93.33,93.264,3.44764601]
[1770237249946,3.66162647,93.33,93.28,9.6677]
[1770237252253,3.66162647,93.347,93.288,9.6668]
[1770237252455,3.66162647,93.347,93.289,3.43055994]
[1770237253339,3.66162647,93.367,93.304,3.60905235]
[1770237254847,3.66162647,93.367,93.314,9.6641]
[1770237255441,27.3838591,93.41,93.304,3.60905235]
[1770237255442,3.66162647,93.365,93.305,9.665]
[1770237255945,3.66162647,93.365,93.304,3.60905235]
[1770237256750,3.66162647,93.409,93.304,3.60905235]
[1770237257451,3.66162647,93.365,93.305,9.6651]
[1770237257652,3.66162647,93.365,93.306,3.67290265]
[1770237259152,9.6593,93.362,93.307,9.6649]
[1770237259349,3.66162647,93.365,93.308,3.67087786]
[1770237260755,3.66162647,93.365,93.31,9.6645]
[1770237260949,3.66162647,93.384,93.311,3.76089082]
[1770237261952,3.66162647,93.368,93.291,3.76089082]
[1770237263054,3.66162647,93.352,93.294,9.6662]
[1770237263253,3.66162647,93.352,93.291,3.76089082]
[1770237263655,3.66162647,93.352,93.256,19.3404]
[1770237263656,3.66162647,93.368,93.314,9.6641]
[1770237264561,3.66162647,93.368,93.322,9.6633]
[1770237264761,9.6573,93.381,93.29,8.0751591]
[1770237264762,3.68277201,93.39,93.323,3.5460173]
[1770237265461,3.68277201,93.39,93.323,13.2092173]
[1770237265657,3.68277201,93.39,93.323,3.5460173]
[1770237266159,9.658,93.374,93.323,3.5460173]
[1770237266359,13.34077201,93.374,93.323,3.5460173]
[1770237266958,3.68277201,93.374,93.323,3.5460173]
[1770237267654,3.68277201,93.374,93.325,3.5460173]
[1770237268060,3.68277201,93.391,93.325,3.5460173]
[1770237268263,3.68277201,93.391,93.335,3.5460173]
[1770237268460,3.68277201,93.408,93.335,3.5460173]